Cogmind - Beta 10.2 @@@ ROGUE MODE // 2021.09.11 @ 21:43:39 Player: onyhow Result: Destroyed by L-31 Rogue with Katana Performance ------------- Evolutions (2) 1000 Regions Visited (9) 1800 Robots Destroyed (139) 695 Value Destroyed (3730) 3730 Prototype IDs (34) 680 Alien Tech Used (0) 0 Bonus (1159) 1159 TOTAL SCORE: 9064 Bonus ------- High Alert Combat Kills 159 Entered Garrisons 200 Used RIF Installer 500 Aligned with FarCom 300 Cogmind --------- Core Integrity 0/550 Matter 300/300 Energy 100/100 System Corruption 3% Temperature Cool (0) Movement Core (350) Ox6 Location -8/Materials Parts ------- > --- POWER (1) -------- (None) > --- PROPULSION (3) --- (None) > --- UTILITY (5) ------ Medium Storage Unit Medium Storage Unit > --- WEAPON (2) ------- Impact Mace Katana > --- INVENTORY (12) --- Heavy Ion Engine Aerolev Unit Improved Cooling System Improved Cooling System Improved Cooling System Improved Field Recycling Unit (192) PSU Rigger Minigun Rocket Launcher Katana Katana Peak State ------------ > --- POWER ------------ Light Deuterium Engine > --- PROPULSION ------- Gravmag System Gravmag System Gravmag System > --- UTILITY ---------- Improved Cooling System Medium Storage Unit Medium Storage Unit Improved Field Recycling Unit PSU Rigger > --- WEAPON ----------- Gatling Laser Minigun > --- INVENTORY -------- Light Nuclear Core Light Angular Momentum Engine Aerolev Unit Gravmag System Improved Cooling System Improved Cooling System Compact Matter Pod Rocket Launcher Impact Mace Impact Mace Katana [Rating: 44] Favorites ----------- Power Nuclear Core Engine Ion Engine Power Core Nuclear Core Propulsion Light Treads Treads Light Treads Leg Aluminum Leg Hover Unit Gravmag System Utility Large Storage Unit Device Cooling System Storage Large Storage Unit Processor Signal Interpreter Protection Reactive Plating Weapon Heavy Assault Rifle Energy Gun Spread Laser Energy Cannon Particle Cannon Ballistic Gun Heavy Assault Rifle Ballistic Cannon Gauss Cannon Launcher Improved Grenade Launcher Impact Weapon Impact Mace Slashing Weapon Katana Build | -11 -10 -10 -9 -9 -9 -8 -8 -8 -8 ------- Run | Scr Mat Min Mat Min Exi Min Mat Gar Mat Slots Evolved 4 | . . . 2 . . . 2 . . Power . | . . . . . . . . . . Propulsion 1 | . . . . . . . 1 . . Utility 3 | . . . 2 . . . 1 . . Weapon . | . . . . . . . . . . Parts Attached 129 | 6 15 2 40 1 3 1 20 7 34 Power 15 | 1 3 . 4 . 1 . 2 . 4 Engine 9 | 1 3 . 2 . . . . . 3 Core 6 | . . . 2 . 1 . 2 . 1 Reactor . | . . . . . . . . . . Propulsion 25 | 2 4 . 8 . . . 4 1 6 Treads 17 | . 4 . 7 . . . 3 1 2 Leg 3 | 2 . . 1 . . . . . . Wheel . | . . . . . . . . . . Hover 5 | . . . . . . . 1 . 4 Flight . | . . . . . . . . . . Utility 49 | 1 3 . 16 1 1 1 6 1 19 Device 20 | . . . 7 . . 1 2 . 10 Storage 13 | 1 2 . 5 . 1 . 1 . 3 Processor 1 | . 1 . . . . . . . . Hackware . | . . . . . . . . . . Protection 15 | . . . 4 1 . . 3 1 6 Artifact . | . . . . . . . . . . Weapon 40 | 2 5 2 12 . 1 . 8 5 5 Energy Gun 17 | 1 3 1 5 . . . 3 3 1 Energy Cannon 5 | . . . 1 . 1 . 3 . . Ballistic Gun 10 | 1 1 . 6 . . . 1 . 1 Ballistic Cannon 1 | . . . . . . . . . 1 Launcher 4 | . 1 1 . . . . . 2 . Special Weapon . | . . . . . . . . . . Impact Weapon 2 | . . . . . . . 1 . 1 Slashing Weapon 1 | . . . . . . . . . 1 Piercing Weapon . | . . . . . . . . . . Special Melee Weapon . | . . . . . . . . . . Unidentified Prototypes 3 | . . . 1 . . . 2 . . Parts Lost 24 | . 2 3 4 . . . 2 3 10 Power 3 | . . 1 . . . . . . 2 Propulsion 9 | . 2 . . . . . 1 2 4 Utility 5 | . . . 1 . . . . . 4 Weapon 7 | . . 2 3 . . . 1 1 . Highest Loss Streak 7 | . 1 3 2 . . . 2 1 7 Average Slot Usage (%) 97 | . 97 71 97 100 100 100 97 93 94 Engine 4 | . 14 7 3 . . . . . 6 Core 6 | . . . 6 11 11 11 9 9 1 Treads 19 | . 19 17 18 22 22 22 26 20 10 Leg 2 | . 8 . 2 . . . . . . Hover 1 | . . . . . . . . . 14 Device 7 | . . . 11 1 . 10 9 9 12 Storage 21 | . 23 8 17 22 22 22 20 27 25 Processor 2 | . 3 14 5 . . . . . . Protection 9 | . . . 8 20 22 11 13 9 4 Energy Gun 5 | . 13 5 6 . . . 3 6 3 Energy Cannon 2 | . . . . . 1 11 9 7 . Ballistic Gun 12 | . 14 14 14 22 21 11 5 . 2 Naked Turns . | . . . . . . . . . . Heaviest Build 79 | 13 27 27 57 65 65 64 79 79 77 Greatest Support 62 | 20 40 40 40 40 40 40 60 60 62 Greatest Overweight (x) 4 | 2 1 . 4 1 1 1 1 3 2 Average Overweight (x) . | . . . . 1 1 1 . 1 . Largest Inventory Capacity 22 | 6 12 10 16 16 16 16 22 22 22 Average Capacity 13 | 5 8 7 8 16 16 16 17 22 16 Most Carried 22 | 5 10 10 14 16 16 16 22 22 22 Average Carried 12 | 3 8 7 7 15 15 16 16 21 16 Final Capacity 22 | 6 10 4 16 16 16 16 22 22 12 Final Carried 22 | 4 10 4 14 16 16 16 22 22 11 Class Distribution -------------------- 61% | Scavenger-Mutant 24% | Mutant 14% | Hauler-Mutant Dominant Class ---------------- Mutant | -10/Materials Mutant | -10/Mines Scavenger-Mutant | -9/Materials Scavenger-Mutant | -9/Mines Scavenger-Mutant | -9/Exiles Scavenger-Mutant | -8/Mines Scavenger-Mutant | -8/Materials Hauler-Mutant | -8/Garrison Mutant | -8/Materials Resources | -11 -10 -10 -9 -9 -9 -8 -8 -8 -8 ----------- Run | Scr Mat Min Mat Min Exi Min Mat Gar Mat Matter Collected 2867 | 269 390 . 960 196 . 40 318 228 466 Remotely . | . . . . . . . . . . Salvage Created 5206 | 80 714 7 2030 391 . . 586 524 874 Parts 290 | 2 53 3 103 26 . . 23 31 49 Haulers Intercepted 5 | . 2 . 2 . . . . . 1 Recyclers Shooed 9 | . 3 . 4 1 . . . . 1 Parts Field Recycled 16 | . . . . . . . . . 16 Retrieved Matter 305 | . . . . . . . . . 305 Parts Self-Destructed . | . . . . . . . . . . Prevented . | . . . . . . . . . . Kills | -11 -10 -10 -9 -9 -9 -8 -8 -8 -8 ------- Run | Scr Mat Min Mat Min Exi Min Mat Gar Mat Combat Hostiles Destroyed 102 | . 16 4 34 10 . . 8 18 12 Melee 5 | . . . . . . . . . 5 Guns 69 | . 14 . 32 10 . . 2 6 5 Cannons 13 | . . . 2 . . . 6 4 1 AOE 15 | . 2 4 . . . . . 8 1 Classes Destroyed 12 | 1 5 1 3 . . . 1 . 1 Worker 2 | . . . 2 . . . . . . Builder 2 | . . . . . . . . . 2 Hauler 5 | . 2 . 2 . . . . . 1 Recycler 17 | 1 3 . 6 2 . . 2 . 3 Operator 2 | . 1 . . . . . . . 1 Watcher 11 | . 2 . 5 . . . 1 . 3 Swarmer 33 | . 6 2 7 8 . . . 10 . Grunt 42 | . 10 . 16 2 . . 4 4 6 Brawler 2 | . . . 2 . . . . . . Sentry 17 | . . . 9 . . . 3 1 4 Hunter 6 | . . . . . . . 1 3 2 Assembled 2 | . . 2 . . . . . . . Best Kill Streak 8 | 1 7 4 8 4 . . 3 5 6 Combat Bots Only 8 | . 4 4 8 3 . . 3 5 3 Max Kills in Single Turn 3 | 1 2 2 1 2 . . 1 3 2 Gunslinging 1 | . . . . 1 . . . . . Exploded 3 | . 1 2 . . . . . 3 1 Melee 1 | . . . . . . . . . 1 Uniques/NPCs Destroyed . | . . . . . . . . . . Combat | -11 -10 -10 -9 -9 -9 -8 -8 -8 -8 -------- Run | Scr Mat Min Mat Min Exi Min Mat Gar Mat Damage Taken 5525 | . 903 422 1138 278 . . 607 522 1655 Core 909 | . 132 72 123 23 . . 47 67 445 Absorbed by Shields . | . . . . . . . . . . Core Remaining (%) 60 | 100 . 18 . . . 63 . . . Volleys Fired 337 | 3 77 5 121 31 . . 42 37 21 Largest 2 | 2 2 2 2 2 . . 2 2 2 Hottest 160 | 70 85 76 121 46 . . 131 160 105 Shots Fired 632 | 6 145 10 217 62 . . 84 66 42 Gun 515 | 6 143 6 202 62 . . 44 27 25 Cannon 100 | . . . 15 . . . 40 28 17 Launcher 17 | . 2 4 . . . . . 11 . Special . | . . . . . . . . . . Kinetic 342 | 3 77 5 122 62 . . 35 . 38 Thermal 245 | 3 66 1 95 . . . 49 27 4 Explosive 17 | . 2 4 . . . . . 11 . Electromagnetic 28 | . . . . . . . . 28 . Robot Hit Streak 18 | 4 18 5 15 13 . . 10 14 9 Robot Miss Streak 6 | 1 6 1 5 3 . . 2 4 3 Penetration Max 1 | . . . . . . . . . 1 Secondary Targets 7 | . . . 2 4 . . . 1 . Max Gunslinging Chain 1 | . . . 1 1 . . . 1 . Shots Hit Robots 468 | 4 99 6 158 37 . . 61 52 51 Core Hits 241 | 2 48 7 81 16 . . 20 38 29 Critical Hits 7 | . . . 1 1 . . 1 . 4 Critical Kills 1 | . . . 1 . . . . . . Critical Parts Destroyed 5 | . . . . 1 . . . . 4 Melee Attacks 35 | . . . . . . . . . 35 Impact 7 | . . . . . . . . . 7 Slashing 28 | . . . . . . . . . 28 Piercing . | . . . . . . . . . . Sneak Attacks 2 | . . . . . . . . . 2 Combat Hostiles . | . . . . . . . . . . Follow-up Attacks 5 | . . . . . . . . . 5 Damage Inflicted 9716 | 36 1356 546 2413 476 . . 1160 2109 1620 Guns 5060 | 36 1123 26 2126 476 . . 455 460 358 Cannons 1695 | . . . 287 . . . 703 398 307 Explosions 1997 | . 226 520 . . . . . 1251 . Melee 955 | . . . . . . . . . 955 Ramming 9 | . 7 . . . . . 2 . . Kinetic 3244 | 12 520 26 1339 476 . . 318 . 553 Thermal 3207 | 24 603 . 1074 . . . 840 554 112 Explosive 1903 | . 226 520 . . . . . 1157 . Electromagnetic 398 | . . . . . . . . 398 . Impact 144 | . . . . . . . . . 144 Slashing 811 | . . . . . . . . . 811 Piercing . | . . . . . . . . . . Highest Corruption 3 | . . . . . . . 3 3 3 Average Corruption 2 | . . . . . . . 2 3 3 Corruption Purged . | . . . . . . . . . . Effects 37 | . . . . . . . 12 8 17 Message Errors 14 | . . . . . . . 4 2 8 Matter Fused 8 | . . . . . . . 2 3 3 Heat Flow Errors 4 | . . . . . . . 3 . 1 Energy Discharges 2 | . . . . . . . 2 . . Data Loss (minor) 4 | . . . . . . . 1 1 2 Targeting Errors 4 | . . . . . . . . 1 3 Weapon Failures 1 | . . . . . . . . 1 . Overload Shots . | . . . . . . . . . . Overflow Damage 144 | . 25 10 . . . . . 7 102 Projectiles 13 | . . . . . . . . 5 8 Explosions 37 | . 25 10 . . . . . 2 . Melee 94 | . . . . . . . . . 94 Knockbacks 5 | . . . . . . . . . 5 Impact . | . . . . . . . . . . Kinetic 5 | . . . . . . . . . 5 Secondary . | . . . . . . . . . . Self-Inflicted Damage 22 | . . 19 . . . . . 3 . Shots 2 | . . 1 . . . . . 1 . Rammed 2 | . 1 . . . . . 1 . . Targets Rammed 2 | . 1 . . . . . 1 . . Kicked . | . . . . . . . . . . Crushed . | . . . . . . . . . . Highest Temperature 264 | 27 264 . 180 144 . . 221 101 187 Average Temperature 53 | 14 74 . 30 52 . . 51 27 96 Received Heat Transfer 1728 | . 330 . 435 45 . . 234 126 558 Siege Activations . | . . . . . . . . . . Robots Corrupted 1 | . . . . . . . . 1 . Combat Hostiles . | . . . . . . . . . . Parts Fried . | . . . . . . . . . . Impact Corruptions 1 | . . . . . . . . . 1 Robots Melted . | . . . . . . . . . . Combat Hostiles . | . . . . . . . . . . Parts Melted 7 | 1 2 . 2 . . . 2 . . Heat Transferred 6660 | 74 1370 . 2274 . . . 1517 1175 250 Parts Sabotaged . | . . . . . . . . . . Parts Stolen . | . . . . . . . . . . Parts Stripped . | . . . . . . . . . . Power Chain Reactions 1 | . . . . . . . . 1 . Missiles Intercepted . | . . . . . . . . . . Alert | -11 -10 -10 -9 -9 -9 -8 -8 -8 -8 ------- Run | Scr Mat Min Mat Min Exi Min Mat Gar Mat Peak Influence 677 | 5 199 122 396 280 . . 193 676 677 Initial 329 | . 3 72 35 85 . . . 40 329 Average 178 | 1 63 88 205 155 . . 71 312 449 Maximum Alert Level 2 | . . . 1 1 . . . 2 2 Low Security (%) 62 | 100 100 100 42 72 . 100 100 40 . Level 1 27 | . . . 57 27 . . . 25 34 Level 2 9 | . . . . . . . . 34 65 Level 3 . | . . . . . . . . . . Level 4 . | . . . . . . . . . . Level 5 . | . . . . . . . . . . High Security . | . . . . . . . . . . Max Security . | . . . . . . . . . . Squads Dispatched 14 | . 3 . 6 . . . 1 . 4 Investigation 6 | . 1 . 2 . . . 1 . 2 Extermination . | . . . . . . . . . . Reinforcement 7 | . 2 . 4 . . . . . 1 Assault 1 | . . . . . . . . . 1 Garrison . | . . . . . . . . . . Intercept . | . . . . . . . . . . Construction Impeded . | . . . . . . . . . . Haulers Reinforced . | . . . . . . . . . . Stealth | -11 -10 -10 -9 -9 -9 -8 -8 -8 -8 --------- Run | Scr Mat Min Mat Min Exi Min Mat Gar Mat Distress Signals 10 | . 2 . 5 . . . 1 . 2 Communications Jammed . | . . . . . . . . . . Distress Signals . | . . . . . . . . . . Times Spotted 189 | . 31 18 53 11 . . 15 21 40 Peak Tracking Total 15 | . 4 15 8 3 . . 4 5 7 Tactical Retreats 17 | . 4 2 2 1 . . . 2 6 Traps | -11 -10 -10 -9 -9 -9 -8 -8 -8 -8 ------- Run | Scr Mat Min Mat Min Exi Min Mat Gar Mat Traps Triggered 10 | . . . 2 . . . 3 4 1 Indirectly . | . . . . . . . . . . Trap Hack Attempts . | . . . . . . . . . . Triggered . | . . . . . . . . . . Disarmed . | . . . . . . . . . . Reprogrammed . | . . . . . . . . . . Reused . | . . . . . . . . . . Traps Extracted . | . . . . . . . . . . Installed . | . . . . . . . . . . Triggered . | . . . . . . . . . . Power Sources Rigged 10 | . . . . . . . 1 . 9 Exploded 6 | . . . . . . . . . 6 Machines | -11 -10 -10 -9 -9 -9 -8 -8 -8 -8 ---------- Run | Scr Mat Min Mat Min Exi Min Mat Gar Mat Machines Disabled 2 | . . . . . . . 1 1 . Max in Single Turn 1 | . . . . . . . 1 1 . Garrison Relay 1 | . . . . . . . . 1 . Machines Sabotaged . | . . . . . . . . . . Garrisons Compromised . | . . . . . . . . . . Overloaded Fab Kills . | . . . . . . . . . . Fab Network Shutdowns . | . . . . . . . . . . Hacking | -11 -10 -10 -9 -9 -9 -8 -8 -8 -8 --------- Run | Scr Mat Min Mat Min Exi Min Mat Gar Mat Machines Accessed 22 | . 4 . 8 . 3 . 3 . 4 Terminals 13 | . 4 . 6 . . . 1 . 2 Fabricators . | . . . . . . . . . . Repair Stations 1 | . . . 1 . . . . . . Recycling Units . | . . . . . . . . . . Scanalyzers 4 | . . . 1 . . . 1 . 2 Garrison Access 1 | . . . . . . . 1 . . Total Hacks 89 | . 13 . 29 . 25 . 7 . 15 Successful 62 | . 6 . 17 . 25 . 5 . 9 Failed 26 | . 7 . 11 . . . 2 . 6 Catastrophic 6 | . 1 . 3 . . . 1 . 1 Database Lockouts 1 | . . . 1 . . . . . . Manual 30 | . 8 . 16 . 1 . 2 . 3 Terminals 43 | . 13 . 21 . . . 4 . 5 Fabricators . | . . . . . . . . . . Repair Stations 2 | . . . 2 . . . . . . Recycling Units . | . . . . . . . . . . Scanalyzers 18 | . . . 6 . . . 2 . 10 Garrison Access 1 | . . . . . . . 1 . . Terminal Hacks 44 | . 6 . 11 . 25 . 2 . . Record 24 | . . . . . 24 . . . . Prototype ID Bank 6 | . 2 . 3 . . . 1 . . Alert Level 5 | . 2 . 2 . . . 1 . . Unreport Threat 3 | . 1 . 2 . . . . . . Locate Traps 2 | . . . 2 . . . . . . Hauler Manifests 1 | . . . 1 . . . . . . Zone Layout 2 | . 1 . 1 . . . . . . EX-Prototype ID Bank 1 | . . . . . 1 . . . . Fabricator Hacks . | . . . . . . . . . . Repair Station Hacks 2 | . . . 2 . . . . . . Scan Component 1 | . . . 1 . . . . . . Repair 1 | . . . 1 . . . . . . Recycling Unit Hacks . | . . . . . . . . . . Scanalyzer 15 | . . . 4 . . . 2 . 9 Insert Component 7 | . . . 2 . . . 1 . 4 Analyze 8 | . . . 2 . . . 1 . 5 Garrison Access Hacks 1 | . . . . . . . 1 . . Unlock Access 1 | . . . . . . . 1 . . Unauthorized Hacks . | . . . . . . . . . . Terminals . | . . . . . . . . . . Fabricators . | . . . . . . . . . . Repair Stations . | . . . . . . . . . . Recycling Units . | . . . . . . . . . . Scanalyzers . | . . . . . . . . . . Garrison Access . | . . . . . . . . . . Data Cores Recovered . | . . . . . . . . . . Used . | . . . . . . . . . . Hacking Detections 17 | . 4 . 7 . . . 2 . 4 Full Trace Events 2 | . 1 . . . . . . . 1 Feedback Events . | . . . . . . . . . . Feedback Blocked . | . . . . . . . . . . Robot Schematics Acquired . | . . . . . . . . . . Robots Built . | . . . . . . . . . . Matter . | . . . . . . . . . . Time . | . . . . . . . . . . Total Robot Build Rating . | . . . . . . . . . . Part Schematics Acquired 7 | . . . 2 . . . 1 . 4 Parts Built . | . . . . . . . . . . Matter . | . . . . . . . . . . Time . | . . . . . . . . . . Total Part Build Rating . | . . . . . . . . . . Parts Repaired 1 | . . . 1 . . . . . . Time 16 | . . . 16 . . . . . . Parts Recycled . | . . . . . . . . . . Recycled Matter . | . . . . . . . . . . Retrieved Matter . | . . . . . . . . . . Retrieved Components . | . . . . . . . . . . Parts Scanalyzed 7 | . . . 2 . . . 1 . 4 Part Schematics Acquired 7 | . . . 2 . . . 1 . 4 Parts Damaged 2 | . . . . . . . . . 2 Bothacking | -11 -10 -10 -9 -9 -9 -8 -8 -8 -8 ------------ Run | Scr Mat Min Mat Min Exi Min Mat Gar Mat Used RIF Installer 1 | . . . . . . . . 1 . Robots Hacked . | . . . . . . . . . . Non-combat . | . . . . . . . . . . Combat . | . . . . . . . . . . Robot Hacks Applied . | . . . . . . . . . . Relay Couplers Released 4 | . . . . . . . . 4 . Machine Destruction 4 | . . . . . . . . 4 . Robots Rewired . | . . . . . . . . . . Allies Hacked . | . . . . . . . . . . Hacks Repelled . | . . . . . . . . . . Allies | -11 -10 -10 -9 -9 -9 -8 -8 -8 -8 -------- Run | Scr Mat Min Mat Min Exi Min Mat Gar Mat Total Allies . | . . . . . . . . . . Largest Group . | . . . . . . . . . . Highest-Rated Group . | . . . . . . . . . . Highest-Rated Ally . | . . . . . . . . . . Total Orders . | . . . . . . . . . . Ally Attacks . | . . . . . . . . . . Total Damage . | . . . . . . . . . . Kills . | . . . . . . . . . . Allies Corrupted . | . . . . . . . . . . Allies Melted . | . . . . . . . . . . Intel | -11 -10 -10 -9 -9 -9 -8 -8 -8 -8 ------- Run | Scr Mat Min Mat Min Exi Min Mat Gar Mat Robot Analysis Total . | . . . . . . . . . . Derelict Logs Recovered 2 | . . 1 . 1 . . . . . Drone Launches . | . . . . . . . . . . Drone Recoveries . | . . . . . . . . . . Exploration | -11 -10 -10 -9 -9 -9 -8 -8 -8 -8 ------------- Run | Scr Mat Min Mat Min Exi Min Mat Gar Mat Turns Passed 9318 | 83 1433 81 2963 770 771 540 1111 614 952 Spaces Moved 4942 | 48 778 80 1436 367 423 300 525 261 724 Core 99 | 7 . 60 32 . . . . . . Treads 3946 | . 514 20 1368 367 423 300 525 261 168 Legs 341 | 41 264 . 36 . . . . . . Wheels . | . . . . . . . . . . Hover 556 | . . . . . . . . . 556 Flight . | . . . . . . . . . . Fastest Speed 50 | 50 120 50 50 180 180 180 160 180 52 Average Speed 153 | 122 146 77 162 180 180 180 172 184 88 Slowest Speed 250 | 150 180 160 250 180 180 180 180 220 180 Overloaded Moves . | . . . . . . . . . . Propulsion Burnouts . | . . . . . . . . . . Robots Hopped . | . . . . . . . . . . Cave-ins Triggered . | . . . . . . . . . . Exploration Rate (%) 52 | 4 83 26 86 66 87 70 30 37 37 Regions Visited 9 Branch Regions 4 Pre-discovered Areas 2 | . . 1 . . 1 . . . . Known Exits Taken 4 | . 1 1 1 . . . 1 . . Unknown Exits Taken 4 | 1 . . . 1 1 1 . . . Scrap Searched 2 | . . . . 1 . 1 . . . Spaces Dug 4 | . . . . . . . . . 4 Terrain Destroyed 106 | . 20 37 . . . . . 37 12 Melee 4 | . . . . . . . . . 4 Projectile 8 | . . . . . . . . . 8 AOE 94 | . 20 37 . . . . . 37 . Terrain Rammed . | . . . . . . . . . . Walls Destroyed . | . . . . . . . . . . Machines Disabled . | . . . . . . . . . . Actions | -11 -10 -10 -9 -9 -9 -8 -8 -8 -8 --------- Run | Scr Mat Min Mat Min Exi Min Mat Gar Mat Total 6016 | 66 929 89 1855 416 433 300 653 320 955 Wait 295 | . 18 . 170 8 . . 11 4 84 Move 4933 | 47 777 79 1435 366 422 299 524 260 724 Hop . | . . . . . . . . . . Pick Up 158 | 10 25 . 54 6 4 . 32 4 23 Fast Attach . | . . . . . . . . . . Attach 45 | 6 4 1 15 . . . 6 2 11 Detach 2 | . . . . . . . . . 2 Swap 84 | . 11 1 25 1 3 1 14 5 23 Drop 116 | . 16 3 35 4 4 . 22 2 30 Fire 337 | 3 77 5 121 31 . . 42 37 21 Melee 28 | . . . . . . . . . 28 Ram . | . . . . . . . . . . Kick . | . . . . . . . . . . Crush 2 | . 1 . . . . . 1 . . Escape Stasis 6 | . . . . . . . . 6 . Rewire . | . . . . . . . . . . Trap 10 | . . . . . . . 1 . 9 Miscellaneous . | . . . . . . . . . . Route ------- -11/Scrapyard -10/Materials (discovered 4 exits: *Mat x2 / *Min x2) -10/Mines -9/Materials (discovered 3 exits: *Mat x2 / *Min) -9/Mines -9/Exiles -8/Mines -8/Materials (discovered 2 exits: Fac / Gar) -8/Garrison -8/Materials History --------- Turn | Location | Event 19 | -11/Scrapyard | Discovered new exit (range 15) 84 | -11/Scrapyard | Entered Materials 173 | -10/Materials | Discovered new exit (range 16) 308 | -10/Materials | Build established: Mutant 337 | -10/Materials | Discovered new exit (range 14) 363 | -10/Materials | Discovered new exit (range 16) 1038 | -10/Materials | Discovered new exit (range 15) 1443 | -10/Materials | Core integrity fell below 50% 1516 | -10/Materials | Identified exit to Mines 1517 | -10/Materials | Entered Mines 1541 | -10/Mines | Learned location of Storage (-7) 1547 | -10/Mines | Assembled infested the area 1569 | -10/Mines | Core integrity fell below 20% 1596 | -10/Mines | Discovered new exit (range 5) 1598 | -10/Mines | Identified exit to Materials 1598 | -10/Mines | Entered Materials 1598 | -9/Materials | Evolved 2 slots: Utility x2 1599 | -9/Materials | Lost 3 parts (1p2w) 2036 | -9/Materials | Build established: Scavenger-Mutant 2108 | -9/Materials | Discovered new exit (range 12) 2137 | -9/Materials | Identified exit to Mines 2629 | -9/Materials | Repaired Cooling System 3053 | -9/Materials | Destroyed 8 combat bots 3393 | -9/Materials | Discovered new exit (range 14) 3836 | -9/Materials | Discovered new exit (range 16) 3850 | -9/Materials | Central database locked down 4561 | -9/Materials | Entered Mines 4608 | -9/Mines | A weapon hastily lodged in a ceiling crevice suddenly fell to the ground 4718 | -9/Mines | Learned location of 1 exit from Materials 5320 | -9/Mines | Deemed a non-threat by the Exiles lab entrance 5322 | -9/Mines | Discovered new exit (range 5) 5331 | -9/Mines | Entered Exiles 5378 | -9/Exiles | Met 8R-AWN 5411 | -9/Exiles | Met EX-HEX 5461 | -9/Exiles | Met EX-BIN 5481 | -9/Exiles | Aligned with FarCom system 5483 | -9/Exiles | Given EX-Vault access code 5531 | -9/Exiles | Opened EX-Vault 5598 | -9/Exiles | Found PSU Rigger 5639 | -9/Exiles | Warned to stay clear of 0b10 Research branches 5687 | -9/Exiles | Met EX-DEC 5723 | -9/Exiles | Learned location of Zion (-7) 5805 | -9/Exiles | Visited The Gauntlet 6087 | -9/Exiles | Discovered new exit (range 10) 6102 | -9/Exiles | Left Exiles lab with PSU Rigger 6102 | -9/Exiles | Entered Mines 6432 | -8/Mines | Discovered new exit (range 4) 6642 | -8/Mines | Entered Materials 6642 | -8/Materials | Evolved 2 slots: Propulsion x1, Utility x1 6643 | -8/Materials | Identified exit to Factory 7732 | -8/Materials | Build established: Hauler-Mutant 7752 | -8/Materials | Identified exit to Garrison 7753 | -8/Materials | Entered Garrison 7806 | -8/Garrison | Triggered checkpoint 7850 | -8/Garrison | Garrison Relay disabled 7943 | -8/Garrison | Triggered checkpoint 8032 | -8/Garrison | Triggered checkpoint 8079 | -8/Garrison | Triggered checkpoint 8328 | -8/Garrison | Discovered new exit (range 12) 8360 | -8/Garrison | Installed Relay Interface Framework 8367 | -8/Garrison | Entered Materials 9046 | -8/Materials | Build established: Mutant 9167 | -8/Materials | First assault squad dispatched 9260 | -8/Materials | Core integrity fell below 50% 9314 | -8/Materials | Core integrity fell below 20% 9319 | -8/Materials | Destroyed by L-31 Rogue with Katana Last Messages --------------- 09222_ G-50 Soldier unfolds itself. 09222_ G-47 Trooper unfolds itself. 09228_ Acquired 25 matter. 09229_ G-47 Trooper destroyed. 09233_ Gravmag System destroyed. 09248_ MM11T 09256_ W-25 Informer sends out distress signal. 09265_ Lgt. Armor Plating destroyed. 09270_ Y-45 Defender Lgt. Armor Plating severed. 09273_ Impact Mace follow-up attack on Y-45 Defender. 09273_ Destroyed Beam Rifle. 09273_ Y-45 Defender system corrupted by crushing effect. 09275_ Gravmag System destroyed. 09284_ Imp. Ion Engine destroyed. 09285_ Y-45 Defender IFF system glitched. 09293_ Lgt. Armor Plating destroyed. 09304_ Gravmag System destroyed. 09306_ Imp. Heat Sink destroyed. 09310_ Com. Matter Pod destroyed. 09311_ CUENTPK434 CVBYBZL KT,D78KT6|1RBEPH Map ----- +----------------------------------------------------+ | #??# #?????????# #?????????????????????????? | | #??# #?????????# #?????????????????????????? | | #??# #?????????# #?????????????????????????? | | #??# #?????????+ #?????????????????????????? | | #??# #?????????# #?????????????????????????? | | #??# #?????????? ##????????????????????????? | | #??# #??????###? " ?????????????????????????? | | /##### #??????#"###+#####??????????????????????? | | # #??????# % #??g???????????????????? | | # #??????# "T" ] #????b?????????????????? | | # #??????# % [#??????????????????????? | | #= *###### = ] #????????w?????????????? | | +% %!=%!* #??????????????????????? | | # ###### #??????????????????????? | | # %#??????# """ """ #??????????????????????? | | # #??????# """ """ #??????????????????????? | | # #??????###########??????????????????????? | | ###### #???????????????????????????????????????? | | ?????# #????????????######?????????????????????? | | ?????# #????????????# ??????????????????????? | | ?????# #????????????# ??????????????????????? | | ?##??# ########?????# ??????????????????????? | | ###### ## #?????# ##########?????????????? | | #?????# # #?????????????? | | #?????# # #?????????????? | | #?????# @/ #?????????????? | | ########### #?????#g l# #????????s????? | | #?????????## ##?????#g # #????????s????? | | #??????????# #??????# g # #?????????????? | | ???????????# #??????# # #???????s?????? | | #??????????# #??????# Y # #?????????????? | | #??????????# #??????# # ! #?????????????? | | ???????????# #??????# ##########?????????????? | | ???????????# #??????# #???????????????g??????? | | ???????????# #??????# #??????????????????????? | | ???????????# #?????## ##?????????????????????? | | ???????????# ####### ###???????????????????? | | ???????????# ????????????? | | ???????????# ! ???????????? | | ???????????# ????????????? | | ???????????# ####### ###+######????????????? | | ???????????# #?????###+###?????????????????????? | | ???????????# #?????????????????????????????????? | | ???????????# #?????????????????????????????????? | | ???????????+ #?????????????????????????????????? | | ???????????# #?????????????????????????????????? | | ???????????# #?????????????????????????????????? | | ???????????# #?????????????????????????????????? | | ???????????# ??????????????????????????????????? | | ???????????# ??????????????????????????????????? | +----------------------------------------------------+ Best States ------------- Heat Dissipation 58 Energy Generation 18 Energy Capacity 265 Matter Stores 450 Matter Capacity 450 Sight Range 16 Robot Scan Range 10 Terrain Scan Density 10 Armor Coverage 300 Resistance: KI 20 Evasion (%) 54 Recoil Reduction 3 Item Schematics ----------------- Cooling System | -9/Materials | Scanalyzed Mni. Grenade Launcher | -9/Materials | Scanalyzed Lrg. Storage Unit | -8/Materials | Scanalyzed Aerolev Unit | -8/Materials | Scanalyzed Impact Mace | -8/Materials | Scanalyzed Katana | -8/Materials | Scanalyzed Gravmag System | -8/Materials | Scanalyzed Robot Schematics ------------------ None Fabricated ------------ Nothing Alien Tech Used ----------------- None Achievements -------------- None Challenges ------------ None Game ------ Seed KineticIonSuperbattery Manual? 0 Play Time 01:33:04 Cumulative 89.4 hours Start 2021.09.10 @ 12:45:58 End 2021.09.11 @ 21:43:39 Sessions 15 Manual Loads 0 Difficulty Rogue Special Mode None Game No. 63 Rogue 63 Adventurer 0 Explorer 0 Win Type - Total 0 Types 0/0/0/0/0/0/0/0/0 Lore% 25 Gallery% 45 Achievement% 31 Wizard Run 0 Options --------- ASCII 0 Keyboard 0 Movement Mouse Keybinds 0 Fullscreen 2 Font 18/SmallcapsGlow Map View 76x50 Tactical HUD 1 Map Filters NONE Filters NONE Steam 1 RUN: 81416330-7d8c-4b0e-818e-6a4c7f36c1cf